Cogmind - Beta 16 @@@ ROGUE MODE // 2026.01.06 @ 16:59:56 Player: ILikeVoltron Result: Self-destructed Performance ------------- Evolutions (2) 1000 Regions Visited (5) 1000 Robots Destroyed (68) 340 Value Destroyed (2115) 2115 Prototype IDs (3) 60 Alien Tech Used (0) 0 Bonus (1036) 1036 TOTAL SCORE: 5551 Bonus ------- High Alert Combat Kills 85 Follower Combat Kills 251 Entered Garrisons 200 Used RIF Installer 500 Cogmind --------- Core Integrity 462/550 Matter 260/300 Energy 53/100 System Corruption 0% Temperature Cool (9) Movement Rolling (110) Ox2 Location -8/Materials Parts ------- > --- POWER (1) -------- (None) > --- PROPULSION (4) --- Aluminum Leg Wheel Improved Hover Unit > --- UTILITY (4) ------ Improved Heat Sink Large Storage Unit Machine Analyzer Terrain Scan Processor > --- WEAPON (2) ------- Ion Cannon Improved Assault Rifle > --- INVENTORY (15) --- Improved Heat Sink Medium Armor Plating Medium Armor Plating Medium Armor Plating Medium Armor Plating Hacking Suite Relay Coupler [Duelist] (22) Relay Coupler [Hunter] (18) Mini Grenade Launcher Mini Grenade Launcher Maul Peak State ------------ > --- POWER ------------ Ion Engine > --- PROPULSION ------- Light Treads Light Treads Aluminum Leg Aluminum Leg > --- UTILITY ---------- Large Storage Unit Machine Analyzer Improved Terrain Scanner Seismic Detector > --- WEAPON ----------- Improved Assault Rifle Improved Assault Rifle > --- INVENTORY -------- Improved Heat Sink Medium Armor Plating Medium Armor Plating Medium Armor Plating Medium Armor Plating Hacking Suite Relay Coupler [Duelist] Relay Coupler [Hunter] Ion Cannon Improved Assault Rifle Mini Grenade Launcher Mini Grenade Launcher Maul [Rating: 22] Favorites ----------- Power Ion Engine Engine Ion Engine Propulsion Light Treads Treads Light Treads Leg Aluminum Leg Wheel Wheel Hover Unit Improved Hover Unit Utility Large Storage Unit Device Seismic Detector Storage Large Storage Unit Processor Machine Analyzer Weapon Light Assault Rifle Energy Cannon Ion Cannon Ballistic Gun Light Assault Rifle Launcher Mini Grenade Launcher Special Weapon Mining Laser Impact Weapon Maul Build | -11 -10 -9 -9 -9 -8 ------- Run | Yrd Mat Mat Sto Gar Mat Slots Evolved 4 | . . 2 . . 2 Power . | . . . . . . Propulsion 2 | . . 2 . . . Utility 2 | . . . . . 2 Weapon . | . . . . . . Parts Attached 40 | 2 5 3 15 8 7 Power 5 | . . . 3 2 . Engine 5 | . . . 3 2 . Core . | . . . . . . Reactor . | . . . . . . Propulsion 18 | . 2 3 5 4 4 Treads 9 | . 2 1 5 1 . Leg 7 | . . 2 . 3 2 Wheel 1 | . . . . . 1 Hover 1 | . . . . . 1 Flight . | . . . . . . Utility 7 | 1 2 . 1 . 3 Device 3 | 1 . . . . 2 Storage 2 | . 2 . . . . Processor 2 | . . . 1 . 1 Hackware . | . . . . . . Protection . | . . . . . . Artifact . | . . . . . . Weapon 10 | 1 1 . 6 2 . Energy Gun . | . . . . . . Energy Cannon 1 | . . . . 1 . Ballistic Gun 5 | 1 . . 4 . . Ballistic Cannon . | . . . . . . Launcher 2 | . . . 1 1 . Special Weapon 1 | . 1 . . . . Impact Weapon 1 | . . . 1 . . Slashing Weapon . | . . . . . . Piercing Weapon . | . . . . . . Special Melee Weapon . | . . . . . . Unidentified Prototypes 1 | . . . 1 . . Parts Lost 18 | . . . 2 6 10 Power 5 | . . . 2 2 1 Propulsion 9 | . . . . 4 5 Utility 2 | . . . . . 2 Weapon 2 | . . . . . 2 Highest Loss Streak 9 | . . . 1 3 9 To Critical Strikes . | . . . . . . Average Backups 13 | 6 9 14 14 14 12 Power . | 1 1 1 . . . Propulsion 1 | 4 3 1 1 . . Utility 7 | . 2 7 8 9 8 Weapon 4 | 1 2 4 5 4 4 Tool/Special . | . . . . . . Unused Backups 22 | 5 2 1 3 3 8 Power 3 | 1 . . 2 . . Propulsion 4 | 2 2 . . . . Utility 11 | 1 . . . 2 8 Weapon 4 | 1 . 1 1 1 . Tool/Special . | . . . . . . Average Slot Usage (%) 94 | . 100 95 99 89 71 Engine 9 | . 14 11 10 6 3 Treads 31 | . 2 27 42 27 6 Leg 7 | . 25 11 1 10 10 Device 3 | . 14 11 1 . 10 Storage 11 | . 14 11 11 11 9 Processor 8 | . . . 9 11 10 Ballistic Gun 17 | . 26 22 16 12 12 Launcher 2 | . . . 1 5 2 Impact Weapon 2 | . . . 3 3 . Peak Build Rating 22 | 8 9 11 19 18 22 Average Rating 14 | 6 8 10 16 16 17 On Entrance 11 | 6 8 9 11 17 17 Avg Prop Armor Cover (%) 7 | . . 5 5 8 13 Naked Turns . | . . . . . . Heaviest Build 33 | 13 28 28 33 31 31 Greatest Support 80 | 20 40 60 80 80 40 Greatest Overweight (x) 7 | . . . . . 7 Average Overweight (x) . | . . . . . 1 Largest Inventory Capacity 15 | 8 15 15 15 15 15 Average Capacity 14 | 8 10 15 15 15 15 Most Carried 15 | 8 15 15 15 15 14 Average Carried 13 | 6 9 14 14 14 12 Final Capacity 15 | 8 15 15 15 15 15 Final Carried 15 | 8 15 15 15 15 11 Class Distribution -------------------- 37% | Scavenger-Mutant 33% | Commander-Mutant 29% | Mutant Dominant Class ---------------- Mutant | -10/Materials Mutant | -9/Materials Commander-Mutant | -9/Storage Scavenger-Mutant | -9/Garrison Scavenger-Mutant | -8/Materials Resources | -11 -10 -9 -9 -9 -8 ----------- Run | Yrd Mat Mat Sto Gar Mat Matter Collected 1421 | 279 72 104 359 323 284 Remotely . | . . . . . . Salvage Created 2285 | 202 91 284 701 551 456 Parts 127 | 15 3 17 38 36 18 Haulers Intercepted 5 | . 1 1 3 . . Recyclers Shooed . | . . . . . . Parts Field Recycled . | . . . . . . Retrieved Matter . | . . . . . . Parts Self-Destructed . | . . . . . . Prevented . | . . . . . . Parts Restored . | . . . . . . Kills | -11 -10 -9 -9 -9 -8 ------- Run | Yrd Mat Mat Sto Gar Mat Combat Hostiles Destroyed 50 | . 1 5 13 24 7 Guns 25 | . 1 5 9 4 6 Cannons 1 | . . . . . 1 AOE 22 | . . . 2 20 . Classes Destroyed 12 | 3 2 1 5 1 . Worker 2 | 2 . . . . . Builder 3 | . . . 2 . 1 Tunneler 4 | 4 . . . . . Hauler 5 | . 1 1 3 . . Recycler 2 | 1 . . . . 1 Mechanic 1 | . . . 1 . . Operator 1 | . . . 1 . . Swarmer 14 | . . . 4 10 . Grunt 26 | . 1 4 6 10 5 Duelist 3 | . . . 1 . 2 Sentry 6 | . . 1 2 3 . Programmer 1 | . . . . 1 . Best Kill Streak 13 | 4 1 6 6 13 5 Combat Bots Only 13 | . 1 5 4 13 3 Max Kills in Single Turn 4 | 1 1 1 1 4 1 Gunslinging 1 | . . . . 1 . Exploded 4 | . . . 1 4 . Melee . | . . . . . . Uniques/NPCs Destroyed . | . . . . . . Combat | -11 -10 -9 -9 -9 -8 -------- Run | Yrd Mat Mat Sto Gar Mat Hostile Shots Fired 279 | . 9 26 72 87 85 Missed 77 | . 1 7 12 28 29 Hits 202 | . 8 19 60 59 56 Melee 4 | . . . . . 4 Projectile 198 | . 8 19 60 59 52 Critical Strikes 4 | . . . 1 3 . Damage Taken 2905 | . 87 228 753 868 969 Core 389 | . 21 53 70 157 88 Absorbed by Shields . | . . . . . . Core Remaining (%) 73 | 100 91 . . 30 . Volleys Fired 199 | 34 21 22 61 25 36 Largest 2 | 2 2 2 2 2 2 Hottest 100 | 40 100 40 53 83 83 Shots Fired 388 | 68 37 44 121 50 68 Gun 354 | 68 33 44 119 27 63 Cannon 6 | . . . . 1 5 Launcher 24 | . . . 2 22 . Special 4 | . 4 . . . . Kinetic 354 | 68 33 44 119 27 63 Thermal 10 | . 4 . . 1 5 Explosive 24 | . . . 2 22 . Electromagnetic . | . . . . . . Robot Hit Streak 25 | 20 4 12 25 10 22 Robot Miss Streak 3 | 2 3 2 2 1 2 Penetration Max . | . . . . . . Secondary Targets 5 | . . . . 1 4 Max Gunslinging Chain 1 | . . . . 1 1 Shots Hit Robots 293 | 51 20 36 89 39 58 Core Hits 121 | 15 5 14 33 31 23 Critical Kills . | . . . . . . Critical Parts Destroyed 5 | . . . 4 1 . Critical Strikes 5 | . . . 4 1 . Smash 5 | . . . 4 1 . Melee Attacks 32 | . . . 14 18 . Impact 32 | . . . 14 18 . Slashing . | . . . . . . Piercing . | . . . . . . Sneak Attacks 3 | . . . 3 . . Combat Hostiles . | . . . . . . Follow-up Attacks . | . . . . . . Damage Inflicted 4884 | 350 169 295 1197 1947 926 Guns 2511 | 350 145 295 652 212 857 Cannons 92 | . . . . 23 69 Explosions 1482 | . . . 123 1359 . Melee 775 | . . . 422 353 . Ramming . | . . . . . . Kinetic 2511 | 350 145 295 652 212 857 Thermal 116 | . 24 . . 23 69 Explosive 1482 | . . . 123 1359 . Electromagnetic . | . . . . . . Impact 775 | . . . 422 353 . Slashing . | . . . . . . Piercing . | . . . . . . Highest Corruption 1 | . . . 1 1 . Average Corruption 1 | . . . 1 1 . Corruption Purged . | . . . . . . Corruption Blocked . | . . . . . . Effects 13 | . . . 7 6 . Message Errors 3 | . . . 1 2 . Matter Fused 4 | . . . 4 . . Heat Flow Errors 1 | . . . . 1 . Energy Discharges 2 | . . . 1 1 . Data Loss (minor) 3 | . . . 1 2 . Overload Shots . | . . . . . . Overflow Damage 342 | . . . 256 86 . Projectiles . | . . . . . . Explosions 12 | . . . . 12 . Melee 330 | . . . 256 74 . Knockbacks 2 | . . . 2 . . Impact 2 | . . . 2 . . Kinetic . | . . . . . . Secondary . | . . . . . . Self-Inflicted Damage 191 | . . . . 191 . Shots 7 | . . . . 7 . Rammed . | . . . . . . Targets Rammed . | . . . . . . Kicked . | . . . . . . Crushed . | . . . . . . Highest Temperature 194 | . 40 6 12 194 12 Average Temperature 17 | . 14 3 5 51 7 Received Heat Transfer 1023 | . 48 111 204 192 468 Siege Activations . | . . . . . . Martial Activations . | . . . . . . Shielding Activations . | . . . . . . Robots Disrupted . | . . . . . . Combat Hostiles . | . . . . . . Robots Corrupted 5 | . . . 3 2 . Combat Hostiles 2 | . . . 2 . . Parts Fried 8 | . . . 7 1 . Impact Corruptions 10 | . . . 8 2 . Robots Melted . | . . . . . . Combat Hostiles . | . . . . . . Parts Melted . | . . . . . . Heat Transferred 198 | . 50 . . 37 111 Parts Sabotaged . | . . . . . . Parts Stolen . | . . . . . . Parts Stripped . | . . . . . . Power Chain Reactions . | . . . . . . Alert | -11 -10 -9 -9 -9 -8 ------- Run | Yrd Mat Mat Sto Gar Mat Maximum Alert Level 3 | . . . 1 3 1 Low Security (%) 75 | 100 100 100 95 20 . Level 1 10 | . . . 4 7 100 Level 2 12 | . . . . 65 . Level 3 1 | . . . . 6 . Level 4 . | . . . . . . Level 5 . | . . . . . . High Security . | . . . . . . Max Security . | . . . . . . Peak Influence 732 | 10 20 120 209 732 356 Initial 356 | . . . 24 72 356 Average 178 | 1 2 64 119 462 336 Influence Increases 1910 | 35 30 147 677 840 181 Destroy 0b10 Robot/C 1220 | . 20 100 400 560 140 Destroy 0b10 Robot/NC 105 | 35 5 5 40 10 10 Destroy Leader 180 | . 2 12 116 20 30 Allied During Kill 93 | . . . 66 27 . Successful Hack 34 | . . . 20 14 . Disable Machine 45 | . . . 30 15 . Anti-Garrison Action 100 | . . . . 100 . Destroy Structure 103 | . 3 . 5 94 1 Lose Combat Pursuer 30 | . . 30 . . . Influence Decreases 1563 | 35 30 90 622 220 566 Entered New Map 449 | . . . 33 40 376 Time Decay 741 | 35 30 90 496 . 90 Lost Part 173 | . . . 13 60 100 Lost Ally 200 | . . . 80 120 . Squads Dispatched 7 | . 1 . 6 . . Investigation 1 | . . . 1 . . Extermination . | . . . . . . Reinforcement 2 | . 1 . 1 . . Assault . | . . . . . . Garrison 4 | . . . 4 . . Intercept . | . . . . . . Searches Triggered . | . . . . . . Construction Impeded . | . . . . . . Haulers Reinforced . | . . . . . . Active Scanning Responses . | . . . . . . Cargo Convoy Interrupts . | . . . . . . Stealth | -11 -10 -9 -9 -9 -8 --------- Run | Yrd Mat Mat Sto Gar Mat Distress Signals 4 | . . . 3 . 1 Communications Jammed . | . . . . . . Distress Signals . | . . . . . . Times Spotted 73 | . 2 7 29 25 10 Peak Tracking Total 9 | . 1 3 5 9 5 Tactical Retreats 1 | . . 1 . . . Traps | -11 -10 -9 -9 -9 -8 ------- Run | Yrd Mat Mat Sto Gar Mat Traps Triggered 3 | . . . 2 1 . Indirectly . | . . . . . . Trap Hack Attempts . | . . . . . . Triggered . | . . . . . . Disarmed . | . . . . . . Reprogrammed . | . . . . . . Reused . | . . . . . . Traps Extracted . | . . . . . . Installed . | . . . . . . Triggered . | . . . . . . Machines | -11 -10 -9 -9 -9 -8 ---------- Run | Yrd Mat Mat Sto Gar Mat Machines Disabled 5 | . . . 2 3 . Max in Single Turn 1 | . . . 1 1 . Garrison Relay 2 | . . . . 2 . Machines Repaired . | . . . . . . Machines Dismantled . | . . . . . . Machines Sabotaged . | . . . . . . Overloaded Fab Kills . | . . . . . . Hacking | -11 -10 -9 -9 -9 -8 --------- Run | Yrd Mat Mat Sto Gar Mat Machines Accessed 12 | . 2 1 8 1 . Terminals 10 | . 2 . 7 1 . Fabricators . | . . . . . . Repair Stations . | . . . . . . Recycling Units . | . . . . . . Scanalyzers 1 | . . 1 . . . Garrison Access 1 | . . . 1 . . Total Hacks 20 | . 2 1 16 1 . Successful 12 | . . 1 10 1 . Failed 8 | . 2 . 6 . . Catastrophic . | . . . . . . Database Lockouts . | . . . . . . Manual 6 | . . . 6 . . Terminals 18 | . 2 . 15 1 . Fabricators . | . . . . . . Repair Stations . | . . . . . . Recycling Units . | . . . . . . Scanalyzers 1 | . . 1 . . . Garrison Access 1 | . . . 1 . . Terminal Hacks 7 | . . . 6 1 . Part Schematic 1 | . . . 1 . . Prototype ID Bank 1 | . . . 1 . . Open Door 1 | . . . 1 . . Emergency Access Points 1 | . . . . 1 . Locate Traps 1 | . . . 1 . . Zone Layout 2 | . . . 2 . . Fabricator Hacks . | . . . . . . Repair Station Hacks . | . . . . . . Recycling Unit Hacks . | . . . . . . Scanalyzer 1 | . . 1 . . . Retrieve Study 1 | . . 1 . . . Garrison Access Hacks 1 | . . . 1 . . Unlock Access 1 | . . . 1 . . Unauthorized Hacks 3 | . . . 3 . . Terminals 3 | . . . 3 . . Botnet 3 | . . . 3 . . Fabricators . | . . . . . . Repair Stations . | . . . . . . Recycling Units . | . . . . . . Scanalyzers . | . . . . . . Garrison Access . | . . . . . . Data Cores Recovered . | . . . . . . Used . | . . . . . . Hacking Detections 8 | . 2 1 5 . . Full Trace Events 1 | . . . 1 . . Feedback Events . | . . . . . . Feedback Blocked . | . . . . . . Robot Schematics Acquired . | . . . . . . Robots Built . | . . . . . . Authchips . | . . . . . . Time . | . . . . . . Total Robot Build Rating . | . . . . . . Part Schematics Acquired 1 | . . . 1 . . Parts Built . | . . . . . . Authchips . | . . . . . . Time . | . . . . . . Total Part Build Rating . | . . . . . . Part Studies Acquired 1 | . . 1 . . . Parts Repaired . | . . . . . . Time . | . . . . . . Parts Recycled . | . . . . . . Recycled Matter . | . . . . . . Retrieved Matter . | . . . . . . Retrieved Components . | . . . . . . Parts Scanalyzed . | . . . . . . Part Schematics Acquired . | . . . . . . Parts Damaged . | . . . . . . Bothacking | -11 -10 -9 -9 -9 -8 ------------ Run | Yrd Mat Mat Sto Gar Mat Used RIF Installer 1 | . . . . 1 . Robots Hacked . | . . . . . . Non-combat . | . . . . . . Combat . | . . . . . . Robot Hacks Applied . | . . . . . . Relay Couplers Released 9 | . . . . 9 . Machine Destruction 6 | . . . . 6 . Programmers 3 | . . . . 3 . Fabnet Peak Effective % . | . . . . . . Robots Rewired . | . . . . . . Allies Hacked . | . . . . . . Hacks Repelled . | . . . . . . Allies | -11 -10 -9 -9 -9 -8 -------- Run | Yrd Mat Mat Sto Gar Mat Total Allies 10 | . . . 10 . . Largest Group 10 | . . . 10 6 . Highest-Rated Group 88 | . . . 88 48 . Highest-Rated Ally 16 | . . . 16 8 . Total Orders 7 | . . . 6 1 . STAY 3 | . . . 3 . . ROAM 1 | . . . . 1 . FOLLOW 3 | . . . 3 . . Ally Attacks 85 | . . . 65 20 . Total Damage 882 | . . . 713 169 . Kills 12 | . . . 8 4 . Allies Corrupted . | . . . . . . Allies Melted . | . . . . . . Intel | -11 -10 -9 -9 -9 -8 ------- Run | Yrd Mat Mat Sto Gar Mat Active Infowar (turns) 2719 | 97 278 233 1377 536 198 Terrain 62 | . . . . . 62 Seismic 861 | 97 278 233 151 . 102 Machine Analysis 1960 | . . . 1226 536 198 Robot Analysis Total . | . . . . . . Derelict Logs Recovered . | . . . . . . Drone Launches . | . . . . . . Drone Recoveries . | . . . . . . Exploration | -11 -10 -9 -9 -9 -8 ------------- Run | Yrd Mat Mat Sto Gar Mat Turns Passed 2768 | 146 278 233 1377 536 198 Spaces Moved 1270 | 37 147 96 697 240 53 Core 2 | . . . . . 2 Treads 1075 | . 16 96 697 240 26 Legs 170 | 37 131 . . . 2 Wheels 23 | . . . . . 23 Hover . | . . . . . . Flight . | . . . . . . Fastest Speed 110 | 120 120 160 160 160 110 Average Speed 154 | 120 124 160 160 160 149 Slowest Speed 400 | 120 160 160 160 160 400 Overloaded Moves . | . . . . . . Propulsion Burnouts . | . . . . . . Robots Hopped . | . . . . . . Potential Cave-ins . | . . . . . . Cave-ins Triggered . | . . . . . . Exploration Rate (%) 31 | 4 25 10 91 54 7 Regions Visited 5 Branch Regions 1 Pre-discovered Areas . | . . . . . . Known Exits Taken 1 | . . . 1 . . Unknown Exits Taken 3 | 1 1 1 . . . Scrap Searched . | . . . . . . Spaces Dug 5 | . 3 . 2 . . Terrain Destroyed 69 | . 3 . 3 62 1 Melee 2 | . . . 2 . . Projectile 4 | . 3 . . . 1 AOE 63 | . . . 1 62 . Terrain Rammed . | . . . . . . Walls Destroyed . | . . . . . . Machines Disabled . | . . . . . . Actions | -11 -10 -9 -9 -9 -8 --------- Run | Yrd Mat Mat Sto Gar Mat Total 1661 | 83 203 141 831 303 100 Wait 64 | 9 16 13 26 . . Move 1265 | 36 146 95 696 239 53 Hop . | . . . . . . Pick Up 25 | 2 10 5 4 4 . Fast Attach 15 | 1 . . 3 5 6 Attach 7 | . . 2 . 1 4 Detach . | . . . . . . Swap 30 | 1 6 1 15 6 1 Drop 21 | . 4 3 11 3 . Fire 199 | 34 21 22 61 25 36 Melee 32 | . . . 14 18 . Ram . | . . . . . . Kick . | . . . . . . Crush . | . . . . . . Escape Stasis . | . . . . . . Rewire 3 | . . . 1 2 . Trap . | . . . . . . Miscellaneous . | . . . . . . Route ------- -11/Scrapyard -10/Materials -9/Materials (discovered 2 exits: *Sto x2) -9/Storage (discovered 2 exits: [Rec] / Gar) -9/Garrison -8/Materials History --------- Turn | Location | Event 27 | -11/Scrapyard | Discovered new exit (range 2) 147 | -11/Scrapyard | Entered Materials 308 | -10/Materials | Build established: Mutant 367 | -10/Materials | Discovered new exit (range 15) 425 | -10/Materials | Entered another Materials area 425 | -9/Materials | Evolved 2 slots: Propulsion x2 427 | -9/Materials | Discovered new exit (range 7) 455 | -9/Materials | Discovered new exit (range 16) 658 | -9/Materials | Entered Storage 944 | -9/Storage | Assisted by bots powering up and referring to "LRC-V3" 1232 | -9/Storage | Build established: Commander-Mutant 1241 | -9/Storage | Garrison activated, responded to threat 1742 | -9/Storage | Discovered new exit (range 18) 1788 | -9/Storage | Garrison activated, responded to threat 1869 | -9/Storage | Identified exit to Garrison 2035 | -9/Storage | Entered Garrison 2035 | -9/Garrison | Accompanied by 6 allies 2073 | -9/Garrison | Triggered checkpoint 2081 | -9/Garrison | Triggered checkpoint 2139 | -9/Garrison | Build established: Scavenger-Mutant 2178 | -9/Garrison | Core integrity fell below 50% 2192 | -9/Garrison | Lost 3 parts (1p2n) 2216 | -9/Garrison | Destroyed 13 combat bots 2287 | -9/Garrison | Triggered checkpoint 2395 | -9/Garrison | Triggered checkpoint 2445 | -9/Garrison | Installed Relay Interface Framework 2475 | -9/Garrison | Garrison Relay disabled 2556 | -9/Garrison | Discovered new exit (range 10) 2571 | -9/Garrison | Entered Materials 2571 | -8/Materials | Evolved 2 slots: Utility x2 2728 | -8/Materials | Lost 9 parts (1p4n2u2w) 2769 | -8/Materials | Self-destructed Last Messages --------------- 02715_ Acquired Wheel. 02716_ Acquired 44 matter. 02718_ Acquired Imp. Heat Sink. 02719_ K-01 Serf collects debris. 02720_ Acquired 52 matter. 02722_ Acquired 56 matter. 02724_ Acquired Terrain Scan Processor. 02728_ Acquired 45 matter. 02730_ Acquired 64 matter. 02731_ K-01 Serf collects debris. 02736_ W-25 Informer sends out distress signal. 02737_ Acquired Aluminum Leg. 02738_ K-01 Serf collects debris. 02741_ Acquired Aluminum Leg. 02744_ Acquired Imp. Hover Unit. 02744_ K-01 Serf collects debris. 02760_ L-31 Rogue destroyed. 02763_ K-01 Serf collects debris. 02763_ Aluminum Leg destroyed. 02766_ K-01 Serf collects debris. Map ----- +----------------------------------------------------+ | ?????????????????????????????????????????????????? | | ?????????????????????????????????????????????????? | | ?????????????????????????????????????????????????? | | ?????????????????????????????????????????????????? | | ?????????????????????????????????????????????????? | | ?????????????????????????????????????????????????? | | ?????????????????????????????????????????????????? | | ?????????????????????????????????????????????????? | | ?????????????????????????????????????????????????? | | ?????????????????????????????????????????????????? | | ???????????????????????????#####?????????????????? | | ???????????????????????????# ?????????????????? | | ???????????????????????????+ ?????????????????? | | ???????????????????????????# ?????????????????? | | ???????????????????????????# #?????????????????? | | ???????????????????????????# #?????????????????? | | ???????????????????????????# #?????????????????? | | ???????????????????????????# #?????????????????? | | ???????????????????????????# #?????????????????? | | ???????????????????????????# #?????????????????? | | ???????????????????????????# #?????????????????? | | ???????????????????????????# +??? ?? ??????#???? | | ?????????????????? ????????# #?? ????????? #???? | | ??????????????????????????## #?? ???????? #???? | | ???????????????###########;# ########### ##### | | ?????????? @%g !!! Y | | ?????????? *g !!= | | ?????????? ############## !! | | ?????????????????????????#?# % ########???? | | ???????????????????????????# u ##?????????? | | ???????????????????????##### """ #???#????""" | | ???????????????????#???##! """ ########?""" | | ???????????????????????#! """ k%! #?""" | | ???????????????????????#! % ! #???? | | ???????????????????????#! !!| #???? | | ???????????????????????#! ########### #???? | | ???????????????????????##! #?????????# #???# | | ????????????????????????#### #?"""?"""?# #???? | | ??????????????????????????## #?"""?"""?+ #???? | | ???????????????????????????#####?"""?""" # ???? | | ?????????????????????????????????????????# ?? | | ?????????????????????????????????????????# ?? | | ?????????????????????#???????????#?#?????##+#####? | | ???????????????????????????????#??????????? ????? | | ???????????????????????????????????#??????? ????# | | ??????????????????????????????????????????? ????? | | ??????????????????????????????????????????? ????? | | ??????????????????????????????????????????? *????? | | ????????????????????????????????????????? ? ???? | | ??????????????????????????????????????????? ???? | +----------------------------------------------------+ Best States ------------- Heat Dissipation 45 Energy Generation 12 Energy Capacity 265 Matter Stores 300 Matter Capacity 300 Sight Range 16 Terrain Scan Range 16 Terrain Scan Density 85 Evasion (%) 55 Recoil Reduction 4 Item Schematics ----------------- Hrd. Light Armor Plating | -9/Storage | Hacked Robot Schematics ------------------ None Fabricated ------------ Nothing Repaired ---------- Nothing Studied --------- Lgt. Treads | -9/Materials | Hacked Alien Tech Used ----------------- None Achievements -------------- Join The Dark Side Challenges ------------ None Game ------ Seed GhostThrusterNanoactuators Manual? 0 Play Time 00:29:57 Cumulative 155.0 hours Start 2026.01.06 @ 16:32:22 End 2026.01.06 @ 16:59:56 Sessions 1 Manual Loads 0 Difficulty Rogue Special Mode None Game No. 266 Rogue 262 Adventurer 0 Explorer 4 Win Type - Total 0 Types 0/0/0/0/0/0/0/0/0/0 Lore% 19 Gallery% 40 Achievement% 25 Wizard Run 0 Options --------- Layout 1 ASCII 0 Keyboard 1 Movement Arrows Keybinds 0 Fullscreen 1 Font 32/SmallcapsGlow Map View 130x35 Zoom Use 0% Tactical HUD 1 Map Filters NONE Filters NONE Steam 1 RUN: 882a797d-e4dc-428a-a0b5-ae65c434fe48